[Event "28th Hit Open-A 2024"]
[Site "Nova Gorica"]
[Date "2024.01.27"]
[Round "3.9"]
[White "Fercec, Nenad"]
[Black "Lavrencic, Matic"]
[Result "1-0"]
[ECO "B90"]
[WhiteElo "2410"]
[BlackElo "2299"]
[Annotator "RC"]
[PlyCount "79"]
[EventDate "2024.01.22"]
[EventType "swiss"]
[EventCountry "SLO"]
[SourceTitle "playchess.com"]
[Source "ChessBase"]
[SourceQuality "1"]
[TimeControl "5400+30"]

1. e4 {[%emt 0:00:05]} c5 {[%emt 0:02:32]} 2. Nf3 {[%emt 0:00:08]} d6 {[%emt 0:00:16]} 3. d4 {[%emt 0:00:28]} cxd4 {[%emt 0:00:39]} 4. Nxd4 {[%emt 0:00:07]} Nf6 {[%emt 0:00:09]} 5. Nc3 {[%emt 0:00:08]} a6 {[%emt 0:00:03]} 6. Be3 {[%emt 0:00:09]} e5 {[%emt 0:00:46]} 7. Nb3 {[%emt 0:00:07]} Be6 {[%emt 0:00:06]} 8. Qd2 {[%emt 0:00:07]} Be7 {[%emt 0:02:20]} 9. f3 {[%emt 0:00:49]} h5 {[%emt 0:00:45]} 10. O-O-O {[%emt 0:00:11]} Nbd7 {[%emt 0:00:09]} 11. Kb1 {[%emt 0:00:06]} Rc8 {[%emt 0:01:30]} 12. Bd3 {[%emt 0:00:08]} b5 {[%emt 0:01:30]} 13. h3 {[%emt 0:00:57]} h4 {[%emt 0:00:06]} 14. f4 {[%emt 0:00:03]} Nb6 {[%emt 0:01:14]} 15. Bxb6 {[%emt 0:07:47]} Qxb6 {[%emt 0:00:22]} 16. Rhe1 {[%emt 0:00:06]} O-O {[%emt 0:26:51]} 17. Rg1 {[%emt 0:09:21]} exf4 {[%emt 0:04:33]} 18. Qxf4 {[%emt 0:00:54]} Nh5 {[%emt 0:01:23]} 19. Qf3 {[%emt 0:02:29]} Ng3 {[%emt 0:00:32]} 20. Nd5 {[%emt 0:06:53]} Bxd5 {[%emt 0:00:38]} 21. exd5 {[%emt 0:00:08]} Bf6 {[%emt 0:00:59]} 22. Rge1 {[%emt 0:00:11]} Rfe8 {[%emt 0:03:10]} 23. c3 {[%emt 0:00:46]} a5 {[%emt 0:05:31]} 24. a3 {[%emt 0:00:28]} Rb8 {[%emt 0:10:05]} 25. Bc2 {[%emt 0:01:44]} Rxe1 {[%emt 0:03:02]} 26. Rxe1 {[%emt 0:00:11]} Be5 {[%emt 0:02:15]} 27. Qe3 {[%emt 0:00:24]} Qxe3 {[%emt 0:10:03]} 28. Rxe3 {[%emt 0:00:28]} b4 {[%emt 0:09:22]} 29. Nxa5 {[%emt 0:04:08]} bxc3 {[%emt 0:00:58]} 30. b4 {[%emt 0:00:17]} Nf1 {[%emt 0:00:23]} 31. Re1 {[%emt 0:11:22]} Nd2+ {[%emt 0:00:01]} 32. Ka2 {[%emt 0:00:08]} Ra8 {[%emt 0:00:59]} 33. Nc6 {[%emt 0:00:40]} Nc4 {[%emt 0:00:27]} 34. a4 {[%emt 0:00:31]} Nb6 {[%emt 0:00:14]} 35. Nxe5 {[%emt 0:03:58]} dxe5 {[%emt 0:00:08]} 36. Rxe5 {[%emt 0:00:38]} Nxa4 {[%emt 0:00:04]} 37. Bxa4 {[%emt 0:01:56]} Rxa4+ {[%emt 0:00:03]} 38. Kb3 {[%emt 0:00:07]} c2 {[%emt 0:00:04]} 39. Re8+ {[%emt 0:00:07]} Kh7 {[%emt 0:00:03]} 40. Rc8 {[%emt 0:00:09]} 1-0

[Event "28th Hit Open-A 2024"]
[Site "Nova Gorica"]
[Date "2024.01.27"]
[Round "3.10"]
[White "Ashwath, R.."]
[Black "Karacsonyi, Gellert"]
[Result "1/2-1/2"]
[ECO "A35"]
[WhiteElo "2284"]
[BlackElo "2398"]
[Annotator "TA"]
[PlyCount "56"]
[EventDate "2024.01.22"]
[EventType "swiss"]
[EventCountry "SLO"]
[SourceTitle "playchess.com"]
[Source "ChessBase"]
[SourceQuality "1"]
[TimeControl "5400+30"]

{[%evp 17,56,12,19,-12,-17,-14,-8,-22,-10,-9,-8,-13,-8,-8,-10,-54,-58,-84,-73,-105,-51,-80,-20,-12,-7,-9,-6,0,0,-4,0,0,0,0,0,0,4,0,0,0,10]} 1. Nf3 {[%emt 0:07:02]} c5 {[%emt 0:00:09]} 2. c4 {[%emt 0:01:05]} Nc6 {[%emt 0:00:12]} 3. Nc3 {[%emt 0:00:22]} g6 {[%emt 0:00:54]} 4. e3 {[%emt 0:00:46]} Nf6 {[%emt 0:00:45]} 5. d4 {[%emt 0:01:11]} cxd4 {[%emt 0:00:07]} 6. exd4 {[%emt 0:00:06]} d5 {[%emt 0:00:08]} 7. cxd5 {[%emt 0:02:13]} Nxd5 {[%emt 0:00:07]} 8. Qb3 {[%emt 0:02:36]} e6 {[%emt 0:00:08]} 9. Bb5 {[%emt 0:02:25]} Bg7 {[%emt 0:00:48]} 10. Qa3 {[%emt 0:08:55]} Qe7 {[%emt 0:04:23] [#] ...Qxa3 is the strong threat.} 11. Nxd5 {[%emt 0:03:51]} exd5+ {[%emt 0:04:19]} 12. Qxe7+ {[%emt 0:01:30]} Kxe7 {[%emt 0:01:38]} 13. O-O {[%emt 0:10:50]} Nxd4 {[%emt 0:07:30]} 14. Nxd4 {[%emt 0:01:18]} Bxd4 {[%emt 0:00:30]} 15. Rd1 {[%emt 0:00:53]} Bf6 {[%emt 0:06:45]} 16. Rxd5 {[%emt 0:01:46]} Be6 {[%emt 0:00:29]} 17. Rd1 {[%emt 0:02:18]} Rhd8 {[%emt 0:00:14]} 18. Re1 {[%emt 0:02:29]} Rac8 {[%emt 0:08:29] Prevents Bc4} ({Better is} 18... Kf8 $17 19. a4 Kg7) 19. Ba4 {[%emt 0:01:09]} a6 {[%emt 0:24:21]} (19... Kf8 $17 20. Bh6+ Kg8) 20. Bb3 $11 {[%emt 0:03:20] The position is equal.} Rc6 {[%emt 0:08:11]} 21. Kf1 {[%emt 0:06:39]} Kd7 {[%emt 0:00:57]} 22. Bxe6+ {[%emt 0:07:52]} fxe6 {[%emt 0:00:01]} 23. Re2 {[%emt 0:01:58]} Rdc8 {[%emt 0:02:53]} 24. Be3 {[%emt 0:01:16]} Rc2 {[%emt 0:04:39]} 25. Rd1+ {[%emt 0:01:06]} Ke7 {[%emt 0:00:07]} 26. Rdd2 {[%emt 0:01:22]} R2c4 {[%emt 0:03:18]} 27. Rd1 {[%emt 0:01:46]} Rc2 {[%emt 0:09:13]} 28. Rdd2 {[%emt 0:00:06]} R2c4 {[%emt 0:00:51] Weighted Error Value: White=0.07 (flawless) /Black=0.11 (very precise) .  Mistake:       	---       	Black=2      Inaccurate:     	White=3     	---        OK:         	White=9     	Black=5      Best:        	White=2     	Black=2} 1/2-1/2

[Event "28th Hit Open-A 2024"]
[Site "Nova Gorica"]
[Date "2024.01.27"]
[Round "3.11"]
[White "Privitera, Franco"]
[Black "Mazzi, Leonardo"]
[Result "1/2-1/2"]
[ECO "A06"]
[WhiteElo "1919"]
[BlackElo "1647"]
[Annotator "TA"]
[PlyCount "30"]
[EventDate "2024.01.22"]
[EventType "swiss"]
[EventCountry "SLO"]
[SourceTitle "playchess.com"]
[Source "ChessBase"]
[SourceQuality "1"]
[TimeControl "5400+30"]

{[%evp 9,30,-10,-2,-31,-9,-19,0,-16,-18,-50,-11,-22,58,62,54,51,60,55,56,35,87,19,36]} 1. Nf3 {[%emt 0:00:54]} d5 {[%emt 0:00:05]} 2. b3 {[%emt 0:00:55]} Nf6 {[%emt 0:00:22]} 3. Bb2 {[%emt 0:00:04]} Bf5 {[%emt 0:00:49]} 4. e3 {[%emt 0:02:00]} e6 {[%emt 0:00:11]} 5. Ne5 {[%emt 0:02:24]} Nbd7 {[%emt 0:03:10]} 6. Be2 {[%emt 0:00:45]} Bd6 {[%emt 0:01:07]} 7. f4 {[%emt 0:00:43]} h6 {[%emt 0:01:50]} 8. Na3 {[%emt 0:04:16][%cal Bb1a3,Ba3c2,Bc2d4][%mdl 32]} c6 {[%emt 0:00:30]} 9. c4 {[%emt 0:01:50]} a5 {[%emt 0:04:18][%cal Od5d4]} 10. O-O {[%emt 0:00:47]} Qb8 {[%emt 0:01:29]} (10... O-O $11) 11. Nxd7 $14 {[%emt 0:05:42]} Kxd7 {[%emt 0:01:05]} 12. Nc2 {[%emt 0:05:12]} Ke7 {[%emt 0:03:09]} 13. Nd4 {[%emt 0:01:35]} Bh7 {[%emt 0:00:31]} 14. Nf3 {[%emt 0:01:12]} a4 {[%emt 0:01:22]} 15. Be5 {[%emt 0:03:05]} ({White should play} 15. Bd4 $16) 15... Bxe5 {[%emt 0:03:06] Weighted Error Value: White=0.20 (precise) /Black=0.28 (precise) .  Mistake:       	White=1     	Black=2      Inaccurate:     	White=1     	Black=1      OK:         	White=2     	Black=2      Best:        	White=1     	---} 1/2-1/2

[Event "28th Hit Open-A 2024"]
[Site "Nova Gorica"]
[Date "2024.01.27"]
[Round "3.12"]
[White "Zupancic, Urban"]
[Black "Cvitan, Ognjen"]
[Result "1/2-1/2"]
[ECO "B32"]
[WhiteElo "2025"]
[BlackElo "2422"]
[Annotator "RC"]
[PlyCount "26"]
[EventDate "2024.01.22"]
[EventType "swiss"]
[EventCountry "SLO"]
[SourceTitle "playchess.com"]
[Source "ChessBase"]
[SourceQuality "1"]
[TimeControl "5400+30"]

1. e4 {[%emt 0:00:06]} c5 {[%emt 0:00:44]} 2. Nf3 {[%emt 0:00:15]} Nc6 {[%emt 0:00:58]} 3. d4 {[%emt 0:00:18]} cxd4 {[%emt 0:00:43]} 4. Nxd4 {[%emt 0:00:09]} e5 {[%emt 0:00:40]} 5. Nb5 {[%emt 0:01:35]} d6 {[%emt 0:00:58]} 6. N1c3 {[%emt 0:04:51]} a6 {[%emt 0:00:54]} 7. Na3 {[%emt 0:00:20]} Be7 {[%emt 0:03:33]} 8. Nc4 {[%emt 0:14:11]} b5 {[%emt 0:03:37]} 9. Ne3 {[%emt 0:01:05]} Nf6 {[%emt 0:02:31]} 10. Bd3 {[%emt 0:15:57]} O-O {[%emt 0:03:48]} 11. O-O {[%emt 0:05:01]} Be6 {[%emt 0:11:34]} 12. a4 {[%emt 0:11:17]} Nd4 {[%emt 0:15:32]} 13. Ncd5 {[%emt 0:11:14]} bxa4 {[%emt 0:03:40]} 1/2-1/2

[Event "28th Hit Open-A 2024"]
[Site "Nova Gorica"]
[Date "2024.01.27"]
[Round "3.13"]
[White "Garsky, Vladyslav"]
[Black "Horvath, Andras"]
[Result "1-0"]
[ECO "C26"]
[WhiteElo "2186"]
[BlackElo "1901"]
[Annotator "TA"]
[PlyCount "85"]
[EventDate "2024.01.22"]
[EventType "swiss"]
[EventCountry "SLO"]
[SourceTitle "playchess.com"]
[Source "ChessBase"]
[SourceQuality "1"]
[TimeControl "5400+30"]

{[%evp 9,85,-25,-19,-29,-17,-64,-45,-49,-14,-41,0,-79,0,-71,-49,-67,-60,-79,-45,-39,-24,-32,-29,-69,72,61,113,129,127,134,176,172,330,331,305,333,326,308,345,365,337,190,229,231,250,254,250,218,214,208,234,229,467,508,473,488,473,435,412,443,461,357,337,333,431,165,762,769,745,714,657,552,514,474,790,330,633,632]} 1. e4 {[%emt 0:04:56]} e5 {[%emt 0:00:09]} 2. Nc3 {[%emt 0:01:03]} Nf6 {[%emt 0:00:08]} 3. d4 {[%emt 0:01:12]} exd4 {[%emt 0:01:26]} 4. Qxd4 {[%emt 0:00:06]} Nc6 {[%emt 0:00:21]} 5. Qd3 {[%emt 0:01:32]} Bc5 {[%emt 0:02:52]} 6. Bf4 {[%emt 0:26:23]} d6 {[%emt 0:03:06]} 7. Nh3 {[%emt 0:03:18]} (7. Bg3 $11) 7... O-O {[%emt 0:09:37]} 8. O-O-O {[%emt 0:03:03][%cal Oe4e5] Black is slightly better.} Be6 {[%emt 0:10:32]} 9. a3 {[%emt 0:09:42] Wards off Nb4} a6 {[%emt 0:03:03]} 10. Nd5 {[%emt 0:08:17]} (10. Be3 $11) 10... Bxh3 {[%emt 0:08:38]} (10... Ne5 $17 11. Nxf6+ Qxf6) 11. gxh3 {[%emt 0:01:09]} (11. Qxh3 $11 {keeps the balance.} Nxd5 12. Rxd5 (12. exd5 Ne5 $11)) 11... Ne5 {[%emt 0:05:50]} (11... Bxf2 $6 12. Bg5 $16) 12. Qe2 {[%emt 0:03:15]} Nxd5 {[%emt 0:02:45]} 13. Rxd5 {[%emt 0:00:48]} Ng6 {[%emt 0:05:13]} 14. Bg3 {[%emt 0:02:47]} Re8 {[%emt 0:03:57]} 15. Bg2 {[%emt 0:01:29]} Qf6 {[%emt 0:01:14]} 16. Qd2 {[%emt 0:05:53] [#] Dodges Bd4} Bxa3 {[%emt 0:18:18]} 17. e5 $16 {[%emt 0:02:29]} Nxe5 {[%emt 0:07:40] Black is on the road to losing.} (17... Bxb2+ $1 $14 18. Kxb2 Nxe5) 18. bxa3 {[%emt 0:03:33]} Nf3 {[%emt 0:02:58][%cal Rf6a1]} 19. Qb4 {[%emt 0:00:11][%cal Oc1b1]} Ne1 {[%emt 0:09:17]} 20. Be4 {[%emt 0:03:49]} (20. Rxe1 Qa1+ 21. Kd2 Qxe1+ (21... Rxe1 22. Bf3 $15) 22. Kd3 Qd1+ 23. Qd2 (23. Kc3 Qa1+ 24. Qb2 Qg1 $17) 23... Qg1 $17) 20... Qa1+ $2 {[%emt 0:00:06]} (20... Nf3 {was worth a try.} 21. Kb1 (21. Qxb7 $2 Rab8 $19) 21... b5) 21. Kd2 $18 {[%emt 0:00:04][%cal Bc1d2,Bd2d3,Bd3d4,Bd4e4,Be4f3,Bf3g2][%mdl 32]} c5 {[%emt 0:01:30]} 22. Qc4 {[%emt 0:01:36]} (22. Rxe1 Qxe1+ 23. Kxe1 cxb4 $14) 22... b5 {[%emt 0:00:17]} 23. Qe2 {[%emt 0:01:24]} (23. Rxe1 Qxe1+ 24. Kxe1 bxc4 $17) 23... Qxa3 {[%emt 0:00:47][%cal Of7f5]} 24. Rxe1 {[%emt 0:00:56][%cal Oe4h7] White wants to mate with Bxh7+!} ({Weaker is} 24. Kxe1 f5 25. f3 (25. Rxf5 $2 {loses.} Qc1+ 26. Qd1 Rxe4+ 27. Kf1 Qxd1+ $19) 25... fxe4 26. fxe4 Qb4+ 27. Kf1 Rxe4 $11 (27... Qxe4 28. Qxe4 Rxe4 29. Bxd6 $16)) 24... Qb4+ {[%emt 0:00:38]} 25. c3 {[%emt 0:00:09]} (25. Kc1 $142) 25... Qb2+ {[%emt 0:00:42]} 26. Kd3 {[%emt 0:01:47]} c4+ {[%emt 0:00:57]} 27. Kd4 {[%emt 0:00:24]} Rxe4+ {[%emt 0:00:02]} 28. Kxe4 {[%emt 0:00:29]} Re8+ {[%emt 0:00:19] [#]} 29. Be5 $1 {[%emt 0:01:16]} Qxc3 {[%emt 0:00:27]} 30. Qe3 {[%emt 0:02:09]} Qc2+ {[%emt 0:01:22]} (30... Rxe5+ {was called for.} 31. Rxe5 Qxe5+ 32. Kf3 Qf5+ 33. Kg2 h6) 31. Kf3 {[%emt 0:00:36][%cal Oe3g5] Qg5! would now be deadly.} Qf5+ {[%emt 0:00:22]} 32. Qf4 {[%emt 0:04:13]} Qxh3+ {[%emt 0:00:37]} 33. Qg3 {[%emt 0:00:04]} Qf5+ {[%emt 0:00:38]} 34. Kg2 {[%emt 0:00:00][%csl Ge5][%cal Rg3g7]} dxe5 {[%emt 0:00:24]} 35. Rdxe5 {[%emt 0:00:12]} Rxe5 {[%emt 0:00:01]} 36. Rxe5 {[%emt 0:00:04]} Qc8 {[%emt 0:00:01] Against Re8+} 37. Qe3 $2 {[%emt 0:00:13] Active counter play!} (37. Qf3 {Strongly threatening Re7.} Kf8 38. Qe4) 37... Kf8 (37... Qg4+ 38. Qg3 Qc8) 38. Qc5+ Qxc5 39. Rxc5 Ke7 40. Kf3 {[%emt 0:00:03]} Kd6 {[%emt 0:00:01]} 41. Rc8 a5 {[%emt 0:00:03]} (41... Kd5 $142 42. Ke2 a5) 42. Ke3 (42. Ke4 $142 {Black must now prevent Kd4.} b4 43. Rxc4) 42... a4 $2 {[%emt 0:00:01]} (42... Kd5 43. Kd2 g6) 43. Kd4 {Weighted Error Value: White=0.48/Black=0.50.  Mistake:       	White=6     	Black=8      Inaccurate:     	White=2     	Black=4      OK:         	White=11    	Black=7      Best:        	White=9     	Black=7} 1-0

[Event "28th Hit Open-A 2024"]
[Site "Nova Gorica"]
[Date "2024.01.27"]
[Round "3.14"]
[White "Hozjan, Erik"]
[Black "Djuric, Stefan"]
[Result "0-1"]
[ECO "B06"]
[WhiteElo "1897"]
[BlackElo "2220"]
[Annotator "RC"]
[PlyCount "100"]
[EventDate "2024.01.22"]
[EventType "swiss"]
[EventCountry "SLO"]
[SourceTitle "playchess.com"]
[Source "ChessBase"]
[SourceQuality "1"]
[TimeControl "5400+30"]

1. e4 {[%emt 0:00:02]} g6 {[%emt 0:10:22]} 2. d4 {[%emt 0:00:23]} Bg7 {[%emt 0:00:05]} 3. Nc3 {[%emt 0:00:23]} d5 {[%emt 0:00:26]} 4. Be3 {[%emt 0:01:23]} Nf6 {[%emt 0:01:03]} 5. e5 {[%emt 0:06:15]} Ng4 {[%emt 0:00:02]} 6. Bf4 {[%emt 0:00:28]} f6 {[%emt 0:03:37]} 7. Be2 {[%emt 0:06:50]} fxe5 {[%emt 0:00:53]} 8. dxe5 {[%emt 0:00:07]} Nxe5 {[%emt 0:12:28]} 9. Qxd5 {[%emt 0:00:19]} Nbd7 {[%emt 0:00:21]} 10. O-O-O {[%emt 0:08:58]} c6 {[%emt 0:01:10]} 11. Qb3 {[%emt 0:16:50]} Qa5 {[%emt 0:02:12]} 12. Ne4 {[%emt 0:00:42]} Rf8 {[%emt 0:13:12]} 13. Bg5 {[%emt 0:04:29]} Nb6 {[%emt 0:13:14]} 14. f4 {[%emt 0:11:25]} Nf7 {[%emt 0:16:40]} 15. Nf3 {[%emt 0:21:18]} Nxg5 {[%emt 0:07:00]} 16. Nfxg5 {[%emt 0:00:30]} Nd5 {[%emt 0:02:43]} 17. Bc4 {[%emt 0:00:21]} Qb6 {[%emt 0:04:41]} 18. Rhe1 {[%emt 0:03:53]} Qxb3 {[%emt 0:01:00]} 19. Bxb3 {[%emt 0:00:10]} Bg4 {[%emt 0:00:04]} 20. Rd2 {[%emt 0:03:03]} O-O-O {[%emt 0:01:17]} 21. Nc5 {[%emt 0:00:20]} Nxf4 {[%emt 0:02:46]} 22. Rxd8+ {[%emt 0:05:05]} Rxd8 {[%emt 0:00:03]} 23. g3 {[%emt 0:00:33]} Ng2 {[%emt 0:02:02]} 24. Rf1 {[%emt 0:01:51]} Bh6 {[%emt 0:01:19]} 25. h4 {[%emt 0:00:30]} Ne3 {[%emt 0:00:57]} 26. Re1 {[%emt 0:00:23]} Nd5 {[%emt 0:01:47]} 27. Kb1 {[%emt 0:01:30]} b6 {[%emt 0:01:32]} 28. Nce6 {[%emt 0:01:14]} Bxe6 {[%emt 0:00:16]} 29. Nxe6 {[%emt 0:00:13]} Rd6 {[%emt 0:00:13]} 30. c4 {[%emt 0:00:27]} Ne3 {[%emt 0:00:20]} 31. c5 {[%emt 0:00:10]} bxc5 {[%emt 0:00:14]} 32. Nxc5 {[%emt 0:00:11]} Rd2 {[%emt 0:00:21]} 33. g4 {[%emt 0:00:51]} Nd5 {[%emt 0:00:40]} 34. Ne4 {[%emt 0:02:51]} Rh2 {[%emt 0:00:35]} 35. Nc3 {[%emt 0:00:35]} Bd2 {[%emt 0:00:04]} 36. Rd1 {[%emt 0:00:28]} Bxc3 {[%emt 0:00:08]} 37. Bxd5 {[%emt 0:00:05]} Rxb2+ {[%emt 0:00:03]} 38. Kc1 {[%emt 0:00:10]} cxd5 {[%emt 0:00:14]} 39. Rxd5 {[%emt 0:00:11]} Rb7 {[%emt 0:00:01]} 40. h5 {[%emt 0:01:04]} Rd7 {[%emt 0:00:31]} 41. Rb5 {[%emt 0:00:26]} Bd2+ {[%emt 0:00:13]} 42. Kc2 {[%emt 0:00:02]} gxh5 {[%emt 0:00:08]} 43. Rxh5 {[%emt 0:00:09]} h6 {[%emt 0:00:02]} 44. Re5 {[%emt 0:00:26]} Bg5 {[%emt 0:00:05]} 45. Re4 {[%emt 0:00:16]} Rd2+ {[%emt 0:00:21]} 46. Kb3 {[%emt 0:00:04]} Rf2 {[%emt 0:00:07]} 47. Ra4 {[%emt 0:00:09]} Kb7 {[%emt 0:00:15]} 48. Rb4+ {[%emt 0:00:05]} Ka8 {[%emt 0:00:01]} 49. a4 {[%emt 0:00:30]} Rf3+ {[%emt 0:00:05]} 50. Kc2 {[%emt 0:00:09]} Rf4 {[%emt 0:00:02]} 0-1

[Event "28th Hit Open-A 2024"]
[Site "Nova Gorica"]
[Date "2024.01.27"]
[Round "3.15"]
[White "Zupancic, Jernej"]
[Black "Kukushkin, Ivan"]
[Result "1-0"]
[ECO "D26"]
[WhiteElo "2211"]
[BlackElo "1890"]
[Annotator "RC"]
[PlyCount "54"]
[EventDate "2024.01.22"]
[EventType "swiss"]
[EventCountry "SLO"]
[SourceTitle "playchess.com"]
[Source "ChessBase"]
[SourceQuality "1"]
[TimeControl "5400+30"]

1. d4 {[%emt 0:00:05]} Nf6 {[%emt 0:12:38]} 2. Nf3 {[%emt 0:00:10]} d5 {[%emt 0:00:08]} 3. c4 {[%emt 0:00:07]} e6 {[%emt 0:00:17]} 4. e3 {[%emt 0:00:07]} dxc4 {[%emt 0:00:53]} 5. Bxc4 {[%emt 0:00:42]} c5 {[%emt 0:00:33]} 6. O-O {[%emt 0:08:10]} Nc6 {[%emt 0:03:44]} 7. Nc3 {[%emt 0:02:11]} cxd4 {[%emt 0:01:03]} 8. Nxd4 {[%emt 0:17:56]} Nxd4 {[%emt 0:00:30]} 9. exd4 {[%emt 0:00:10]} Be7 {[%emt 0:02:25]} 10. d5 {[%emt 0:04:20]} exd5 {[%emt 0:00:37]} 11. Nxd5 {[%emt 0:03:29]} Nxd5 {[%emt 0:00:25]} 12. Bxd5 {[%emt 0:00:10]} O-O {[%emt 0:02:18]} 13. Be3 {[%emt 0:01:46]} Bg5 {[%emt 0:05:52]} 14. Qb3 {[%emt 0:06:44]} Bxe3 {[%emt 0:00:34]} 15. fxe3 {[%emt 0:00:12]} Qe7 {[%emt 0:00:12]} 16. Rxf7 {[%emt 0:01:29]} Rxf7 {[%emt 0:00:18]} 17. Rf1 {[%emt 0:00:09]} Kh8 {[%emt 0:00:54]} 18. Rxf7 {[%emt 0:01:49]} Qe8 {[%emt 0:01:06]} 19. Qc3 {[%emt 0:02:50]} Qg8 {[%emt 0:00:12]} 20. h3 {[%emt 0:01:59]} Bxh3 {[%emt 0:02:16]} 21. gxh3 {[%emt 0:00:52]} h6 {[%emt 0:00:55]} 22. Rxb7 {[%emt 0:01:45]} Qh7 {[%emt 0:00:25]} 23. Rxg7 {[%emt 0:01:22]} Qb1+ {[%emt 0:00:09]} 24. Kh2 {[%emt 0:00:23]} Qc2+ {[%emt 0:00:39]} 25. Qxc2 {[%emt 0:00:12]} Kxg7 {[%emt 0:00:06]} 26. Qc3+ {[%emt 0:00:18]} Kh7 {[%emt 0:00:07]} 27. Bxa8 {[%emt 0:00:15]} h5 {[%emt 0:00:03]} 1-0

[Event "28th Hit Open-A 2024"]
[Site "Nova Gorica"]
[Date "2024.01.27"]
[Round "3.16"]
[White "Siraj, Svit"]
[Black "Rigatti, Giorgio"]
[Result "1-0"]
[ECO "B52"]
[WhiteElo "2182"]
[BlackElo "1749"]
[Annotator "TA"]
[PlyCount "51"]
[EventDate "2024.01.22"]
[EventType "swiss"]
[EventCountry "SLO"]
[SourceTitle "playchess.com"]
[Source "ChessBase"]
[SourceQuality "1"]
[TimeControl "5400+30"]

{[%evp 12,51,29,18,25,20,35,38,41,31,55,33,34,36,106,86,102,91,95,97,103,109,99,103,185,184,167,112,96,81,100,95,610,584,1293,1188,1775,1307,29991,1213,29990,835]} 1. e4 {[%emt 0:00:03]} c5 {[%emt 0:02:31]} 2. Nf3 {[%emt 0:00:09]} d6 {[%emt 0:00:11]} 3. Bb5+ {[%emt 0:00:06]} Bd7 {[%emt 0:00:08]} 4. Bxd7+ {[%emt 0:00:06]} Qxd7 {[%emt 0:00:07]} 5. c4 {[%emt 0:00:10]} Nf6 {[%emt 0:00:12]} 6. Nc3 {[%emt 0:00:09]} Nc6 {[%emt 0:00:22]} 7. O-O {[%emt 0:00:15]} e5 {[%emt 0:01:39]} 8. d3 {[%emt 0:00:20]} h6 {[%emt 0:00:08]} 9. a3 {[%emt 0:01:01]} Be7 {[%emt 0:00:24] White is slightly better.} 10. Rb1 {[%emt 0:00:18]} a5 {[%emt 0:03:29]} 11. Nd5 {[%emt 0:02:28]} Nxd5 {[%emt 0:01:27]} 12. cxd5 {[%emt 0:00:06]} Nd8 {[%emt 0:07:11]} ({Better is} 12... Nd4 $14) 13. Nd2 {[%emt 0:02:16]} Bg5 {[%emt 0:03:24]} 14. Nc4 {[%emt 0:01:17]} Ra6 {[%emt 0:01:52] Repels Nb6} 15. f4 {[%emt 0:00:24]} exf4 {[%emt 0:06:44]} 16. Bxf4 {[%emt 0:00:11]} Bxf4 {[%emt 0:00:37]} 17. Rxf4 {[%emt 0:00:08]} Qe7 {[%emt 0:15:51]} (17... O-O $16 {keeps fighting.}) 18. a4 $18 {[%emt 0:02:36]} f6 {[%emt 0:09:10]} 19. Qd2 {[%emt 0:01:42]} (19. Ne3 $18) 19... Qd7 {[%emt 0:06:25]} 20. b3 {[%emt 0:00:13]} b6 {[%emt 0:00:28]} 21. d4 {[%emt 0:01:01] White has more active pieces.} Qc7 $2 {[%emt 0:04:57][%mdl 8192] [#] Black cannot hold the game after this.} (21... cxd4 $16 22. Na3 (22. Qxd4 Nf7 $16) 22... O-O) 22. e5 $1 {[%emt 0:00:23][%mdl 512]} cxd4 {[%emt 0:12:03]} (22... dxe5 23. dxe5) 23. Nxd6+ {[%emt 0:01:05]} Kd7 {[%emt 0:01:17] Black is weak on the light squares} 24. Rc1 {[%emt 0:00:44]} Qb8 {[%emt 0:02:07]} 25. Rc8 {[%emt 0:00:54]} (25. Qd3 $142 b5 26. Rxf6 (26. Qxd4 Qb6 $18) 26... Rc6 27. Qf5+ (27. dxc6+ Nxc6 28. Qf5+ Kd8 29. Rxc6 gxf6 30. exf6 Qc7) 27... Kc7 28. dxc6 gxf6 29. Qd7+ Kb6 30. c7 (30. exf6 Qxd6 31. Qxd6 Ne6 32. c7+ Kb7 33. axb5 Nc5 34. Rxc5 Ra8 35. c8=B+ Rxc8 36. Qa6+ Kb8 37. Rxc8#)) 25... Qa7 {[%emt 0:00:18]} 26. Nb5 {[%emt 0:00:26] Weighted Error Value: White=0.13 (very precise) /Black=1.14.  Loses game:     	---       	Black=1      Mistake:       	White=1     	Black=2      Inaccurate:     	---       	Black=2      OK:         	White=4     	Black=4      Brilliant:      	White=1     	---} (26. Qe2 $142 h5 27. Qb5+ (27. Rxd4 Ke7 $18) 27... Ke7 28. Nf5+ (28. Rxd4 Qd7 $18) 28... Kf7 29. e6+ (29. Nxd4 Rf8 $18) 29... Kg6 30. Qd3 (30. Nxd4 Kh6 $18) (30. e7 Kh7 $18) 30... Qf7 31. Ne7+ (31. exf7 Kxf7 32. Qe4 Kg6) 31... Kh6 32. exf7 f5 33. Qxf5 (33. Qxa6 g6 34. Qxb6 Ne6 35. Qxe6 Kg5) (33. Nxf5+ Kg6 34. Qg3+ Kxf7 35. Qxg7+ Ke8 36. Qe7#) 33... b5 34. Ng8+ Rxg8 35. fxg8=N#) 1-0